Cogmind - Beta 16 @@@ ROGUE MODE // 2025.12.14 @ 15:45:47 Player: lepire Result: Self-destructed Performance ------------- Evolutions (6) 3000 Regions Visited (14) 2800 Robots Destroyed (87) 435 Value Destroyed (2982) 2982 Prototype IDs (18) 360 Alien Tech Used (0) 0 Bonus (858) 858 TOTAL SCORE: 10435 Bonus ------- High Alert Combat Kills 60 Follower Combat Kills 98 Entered Garrisons 200 Used RIF Installer 500 Cogmind --------- Core Integrity 908/1150 Matter 243/300 Energy 0/100 System Corruption 0% Temperature Cool (8) Movement Walking (90) Location -4/Factory Parts ------- > --- POWER (2) -------- (None) > --- PROPULSION (5) --- Advanced VSS Leg Advanced VSS Leg Advanced VSS Leg Advanced VSS Leg > --- UTILITY (10) ----- Experimental Heat Sink Medium Storage Unit > --- WEAPON (2) ------- (None) > --- INVENTORY (10) --- Field Propulsion Drive Compact Battery (200) Energy Filter Advanced Phase Shifter Improved Light Armor Plating EM Shield Advanced Hacking Suite Improved Component Analysis Suite Phase Gun Long-range Missile Launcher Peak State ------------ > --- POWER ------------ Micro Nuclear Core Fusion Compressor > --- PROPULSION ------- Cooled Aerolev Unit Gravmag Array Gravmag Array > --- UTILITY ---------- Power Amplifier Cryofiber Web Advanced Cooling System Medium Storage Unit Enhanced Optical Array Particle Charger Improved Light Armor Plating Layered Light Armor Plating Improved Shield Generator > --- WEAPON ----------- Powered Cannon > --- INVENTORY -------- Fission Core Airjet Improved Cooling System Compact Battery Reaction Control System Improved Light Armor Plating Improved Thermal Shield EM Shield Shield Generator Heavy Missile Launcher [Rating: 86] Favorites ----------- Power Ion Engine Engine Ion Engine Power Core Micro Nuclear Core Propulsion Airjet Treads Light Treads Leg Titanium Leg Wheel Compact Wheel Hover Unit Airjet Flight Unit Improved VTOL Module Utility Medium Storage Unit Device Experimental Heat Sink Storage Medium Storage Unit Processor Terrain Scan Processor Protection Layered Light Armor Plating Weapon Assault Rifle Energy Gun Arc Projector Energy Cannon Powered Cannon Ballistic Gun Assault Rifle Ballistic Cannon Battle Cannon Launcher Subdweller Shrapnel Launcher Special Weapon Mining Laser Slashing Weapon Axe Build | -11 -10 -10 -8 -7 -6 -6 -5 -5 -5 -5 -5 -5 -4 -4 ------- Run | Yrd Mat Sub Mat Fac Fac Gar Fac Was Fac Upp Upp War Pro Fac Slots Evolved 12 | . . . 4 2 2 . 2 . . . . . . 2 Power 1 | . . . . . . . . . . . . . . 1 Propulsion 3 | . . . 2 1 . . . . . . . . . . Utility 8 | . . . 2 1 2 . 2 . . . . . . 1 Weapon . | . . . . . . . . . . . . . . . Parts Attached 87 | 4 2 10 27 10 7 5 10 . 1 1 1 . 1 8 Power 12 | . . 2 6 1 1 . . . 1 . . . . 1 Engine 8 | . . 2 5 . . . . . . . . . . 1 Core 4 | . . . 1 1 1 . . . 1 . . . . . Reactor . | . . . . . . . . . . . . . . . Propulsion 27 | 2 . 1 11 3 3 . . . . . 1 . . 6 Treads 2 | 1 . 1 . . . . . . . . . . . . Leg 7 | . . . 3 . . . . . . . . . . 4 Wheel 1 | 1 . . . . . . . . . . . . . . Hover 11 | . . . 4 3 3 . . . . . 1 . . . Flight 6 | . . . 4 . . . . . . . . . . 2 Utility 33 | 1 . 4 6 5 3 5 7 . . 1 . . 1 . Device 16 | 1 . 1 . 1 3 3 5 . . 1 . . 1 . Storage 5 | . . 1 4 . . . . . . . . . . . Processor 2 | . . 1 . . . . 1 . . . . . . . Hackware . | . . . . . . . . . . . . . . . Protection 10 | . . 1 2 4 . 2 1 . . . . . . . Artifact . | . . . . . . . . . . . . . . . Weapon 15 | 1 2 3 4 1 . . 3 . . . . . . 1 Energy Gun 3 | . . . 1 . . . 1 . . . . . . 1 Energy Cannon 2 | . . . . 1 . . 1 . . . . . . . Ballistic Gun 2 | 1 1 . . . . . . . . . . . . . Ballistic Cannon 1 | . . 1 . . . . . . . . . . . . Launcher 3 | . . 2 . . . . 1 . . . . . . . Special Weapon 1 | . 1 . . . . . . . . . . . . . Impact Weapon . | . . . . . . . . . . . . . . . Slashing Weapon 3 | . . . 3 . . . . . . . . . . . Piercing Weapon . | . . . . . . . . . . . . . . . Special Melee Weapon . | . . . . . . . . . . . . . . . Unidentified Prototypes 4 | . . . 1 . 1 . 1 . . . . . . 1 Parts Lost 28 | . . 4 5 1 . 1 3 . . . 1 2 7 4 Power 5 | . . 1 2 . . . . . . . . . 1 1 Propulsion 7 | . . 1 1 1 . . . . . . . 1 2 1 Utility 12 | . . 1 1 . . 1 2 . . . 1 1 3 2 Weapon 4 | . . 1 1 . . . 1 . . . . . 1 . Highest Loss Streak 6 | . . 2 3 1 . 1 2 . . . 1 1 6 4 To Critical Strikes . | . . . . . . . . . . . . . . . Average Backups 7 | 4 5 6 8 9 9 9 9 9 10 9 10 10 9 8 Power . | 1 1 . . . . 1 . . . 1 1 1 1 . Propulsion . | 2 2 . . . 1 2 . . . . . . . . Utility 4 | . 1 1 3 7 6 5 7 7 8 7 8 8 7 7 Weapon 2 | 1 1 3 3 1 1 1 1 2 1 1 1 1 1 1 Tool/Special . | . . . . . . . . . . . . . . . Unused Backups 41 | 9 . 3 11 3 3 . 3 1 1 1 . . . 6 Power 4 | 1 . . 1 . 1 . 1 . . . . . . . Propulsion 7 | 4 . 1 2 . . . . . . . . . . . Utility 20 | 1 . 1 6 2 1 . 2 1 . 1 . . . 5 Weapon 9 | 3 . 1 2 1 . . . . 1 . . . . 1 Tool/Special 1 | . . . . . 1 . . . . . . . . . Average Slot Usage (%) 80 | . 100 87 60 88 87 80 81 81 82 82 81 69 57 23 Engine 7 | . 14 13 5 7 2 . . . . . . . . 2 Core 2 | . . . . 3 9 12 8 5 5 5 5 5 4 . Treads 6 | . 14 14 5 . . . . . . . . . . . Leg 1 | . . . 6 . . . . . . . . . . . Wheel 5 | . 14 13 . . . . . . . . . . . . Hover 9 | . . . 6 34 26 18 16 17 17 17 17 13 8 . Device 11 | . 14 4 . . 17 25 28 34 35 35 34 26 25 11 Storage 8 | . 14 9 13 13 6 6 5 5 5 5 5 5 5 5 Processor 1 | . . 4 . . . . 2 . . . . . . . Protection 6 | . . . 7 20 18 11 10 11 11 11 11 11 4 . Energy Cannon 2 | . . . . 6 6 6 3 5 5 5 4 5 4 . Ballistic Gun 7 | . 27 15 . . . . . . . . . . . . Ballistic Cannon 2 | . . 6 . . . . . . . . . . . . Launcher 1 | . . 2 . . . . 1 . . . . . . . Slashing Weapon 1 | . . . 12 . . . . . . . . . . . Peak Build Rating 86 | 7 8 10 33 54 76 79 86 78 80 83 80 77 69 41 Average Rating 34 | 6 7 8 16 47 66 76 79 77 79 79 79 71 61 25 On Entrance 49 | 6 7 8 3 30 54 76 76 74 78 80 80 77 68 22 Avg Prop Armor Cover (%) 9 | 12 12 7 16 3 . . . . . . . 4 . . Naked Turns . | . . . . . . . . . . . . . . . Heaviest Build 50 | 15 15 27 47 43 45 45 48 42 50 50 50 49 44 21 Greatest Support 72 | 16 16 20 37 45 49 49 53 53 53 53 55 55 44 72 Greatest Overweight (x) 6 | . . 1 6 1 1 1 . . . . . 2 4 6 Average Overweight (x) . | . . . . . . . . . . . . . . 1 Largest Inventory Capacity 15 | 8 8 8 15 10 10 10 10 10 10 10 10 10 10 10 Average Capacity 8 | 8 8 6 11 10 10 10 10 10 10 10 10 10 10 10 Most Carried 15 | 6 7 8 15 10 10 10 10 10 10 10 10 10 10 10 Average Carried 8 | 4 5 6 9 9 9 9 9 9 10 9 9 10 9 8 Final Capacity 10 | 8 8 5 10 10 10 10 10 10 10 10 10 10 10 10 Final Carried 10 | 5 7 5 10 10 10 10 10 10 10 10 10 10 9 10 Class Distribution -------------------- 100% | Mutant Dominant Class ---------------- Mutant | -10/Materials Mutant | -10/Subcaves Mutant | -8/Materials Mutant | -7/Factory Mutant | -6/Factory Mutant | -6/Garrison Mutant | -5/Factory Mutant | -5/Waste Mutant | -5/Factory Mutant | -5/Upper Caves Mutant | -5/Upper Caves Mutant | -5/Warlord Mutant | -4/Proximity Caves Mutant | -4/Factory Resources | -11 -10 -10 -8 -7 -6 -6 -5 -5 -5 -5 -5 -5 -4 -4 ----------- Run | Yrd Mat Sub Mat Fac Fac Gar Fac Was Fac Upp Upp War Pro Fac Matter Collected 2356 | 284 17 437 552 95 100 328 320 . 75 81 58 . 6 3 Remotely . | . . . . . . . . . . . . . . . Salvage Created 3061 | 61 17 384 691 332 341 523 401 . 266 . 45 . . . Parts 179 | 10 2 30 45 8 17 19 30 . 16 . 2 . . . Haulers Intercepted 6 | . . . 4 . . . 1 . 1 . . . . . Recyclers Shooed 4 | 1 . . 2 . 1 . . . . . . . . . Parts Field Recycled . | . . . . . . . . . . . . . . . Retrieved Matter . | . . . . . . . . . . . . . . . Parts Self-Destructed 18 | . . 12 . . . . . . . 4 2 . . . Prevented . | . . . . . . . . . . . . . . . Parts Restored . | . . . . . . . . . . . . . . . Kills | -11 -10 -10 -8 -7 -6 -6 -5 -5 -5 -5 -5 -5 -4 -4 ------- Run | Yrd Mat Sub Mat Fac Fac Gar Fac Was Fac Upp Upp War Pro Fac Combat Hostiles Destroyed 65 | . . 13 13 5 7 11 8 . 4 . 4 . . . Melee 6 | . . . 6 . . . . . . . . . . . Guns 4 | . . 3 1 . . . . . . . . . . . Cannons 22 | . . 1 . 4 6 9 1 . 1 . . . . . AOE 28 | . . 9 5 . . . 7 . 3 . 4 . . . Classes Destroyed 15 | 1 1 3 4 1 1 2 1 . 1 . . . . . Worker 3 | . . . . . . . 1 . 2 . . . . . Builder 5 | . 1 . 1 . 1 . 1 . 1 . . . . . Tunneler 3 | 3 . . . . . . . . . . . . . . Hauler 6 | . . . 4 . . . 1 . 1 . . . . . Recycler 3 | . . . 2 . . . 1 . . . . . . . Operator 1 | . . . 1 . . . . . . . . . . . Watcher 1 | . . . . 1 . . . . . . . . . . Swarmer 28 | . . . 9 . 3 5 7 . . . 4 . . . Grunt 14 | . . 1 4 3 2 2 . . 2 . . . . . Brawler 2 | . . . . . . 2 . . . . . . . . Sentry 5 | . . 1 . 2 1 . 1 . . . . . . . Specialist 2 | . . . . . . 2 . . . . . . . . Hunter 2 | . . . . . . . . . 2 . . . . . Programmer 1 | . . . . . 1 . . . . . . . . . Subdweller 11 | . . 11 . . . . . . . . . . . . Best Kill Streak 7 | 2 1 3 4 3 4 3 6 . 7 . 4 . . . Combat Bots Only 4 | . . 3 4 2 3 3 4 . 3 . 4 . . . Max Kills in Single Turn 7 | 1 1 1 4 1 1 1 3 . 7 . 2 . . . Gunslinging . | . . . . . . . . . . . . . . . Exploded 4 | . . 1 4 . . . 2 . 3 . 2 . . . Melee 1 | . . . 1 . . . . . . . . . . . Uniques/NPCs Destroyed . | . . . . . . . . . . . . . . . Combat | -11 -10 -10 -8 -7 -6 -6 -5 -5 -5 -5 -5 -5 -4 -4 -------- Run | Yrd Mat Sub Mat Fac Fac Gar Fac Was Fac Upp Upp War Pro Fac Hostile Shots Fired 527 | . . 59 91 24 79 81 42 . 12 11 11 . 90 27 Missed 199 | . . 17 26 5 37 31 25 . 8 9 3 . 33 5 Hits 328 | . . 42 65 19 42 50 17 . 4 2 8 . 57 22 Projectile 328 | . . 42 65 19 42 50 17 . 4 2 8 . 57 22 AOE 1 | . . . . . . . . . . . . . . 1 Critical Strikes 11 | . . 1 3 . 2 . . . . . . . 4 1 Part Disruptions 3 | . . . . . . 2 . . . . . 1 . . Damage Taken 5210 | . . 964 803 265 476 496 287 . 123 46 144 172 995 439 Core 1135 | . . 212 106 101 76 15 . . 34 . 30 . 319 242 Absorbed by Shields 359 | . . . . 8 133 171 47 . . . . . . . Redirected to Shielding 101 | . . . . 33 54 14 . . . . . . . . Ignored by Resistances 232 | . . . . . . 42 . . . . . . 190 . Regen/Repaired (Parts) 37 | . . . . 37 . . . . . . . . . . Core Remaining (%) 71 | 100 . 15 80 85 . 89 . . . . . . 61 . Volleys Fired 237 | 9 3 53 20 24 47 30 30 4 4 9 2 . . 2 Largest 2 | 2 2 2 1 1 1 1 1 1 1 1 1 . . 1 Hottest 120 | 40 100 120 45 40 40 40 40 98 98 98 39 . . 88 Shots Fired 268 | 18 4 74 20 24 47 30 30 4 4 9 2 . . 2 Gun 71 | 18 2 30 19 . . . . . . . . . . 2 Cannon 148 | . . 11 . 24 47 30 19 4 4 9 . . . . Launcher 39 | . . 25 1 . . . 11 . . . 2 . . . Special 10 | . 2 8 . . . . . . . . . . . . Kinetic 74 | 18 2 53 1 . . . . . . . . . . . Thermal 149 | . 2 8 . 24 47 30 19 4 4 9 . . . 2 Explosive 26 | . . 13 . . . . 11 . . . 2 . . . Electromagnetic 19 | . . . 19 . . . . . . . . . . . Robot Hit Streak 18 | 4 6 18 10 5 4 6 12 2 5 2 . . . . Robot Miss Streak 3 | 1 . 1 2 3 2 3 2 2 . 1 . . . . Penetration Max . | . . . . . . . . . . . . . . . Secondary Targets 1 | . . 1 . . . . . . . . . . . . Max Gunslinging Chain 1 | . . 1 . . . . . . . . . . . . Shots Hit Robots 181 | 12 2 46 47 14 19 17 17 2 3 2 . . . . Core Hits 112 | 4 1 24 22 6 8 11 20 . 13 . 3 . . . Critical Kills 4 | . . . . 1 1 2 . . . . . . . . Critical Parts Destroyed . | . . . . . . . . . . . . . . . Critical Strikes 12 | . . 1 7 1 1 2 . . . . . . . . Meltdown 4 | . . . . 1 1 2 . . . . . . . . Blast 1 | . . 1 . . . . . . . . . . . . Sever 7 | . . . 7 . . . . . . . . . . . Melee Attacks 44 | . . . 44 . . . . . . . . . . . Impact . | . . . . . . . . . . . . . . . Slashing 44 | . . . 44 . . . . . . . . . . . Piercing . | . . . . . . . . . . . . . . . Sneak Attacks 8 | . . . 8 . . . . . . . . . . . Combat Hostiles . | . . . . . . . . . . . . . . . Follow-up Attacks 3 | . . . 3 . . . . . . . . . . . Damage Inflicted 8844 | 151 28 1606 1657 685 1099 848 1577 112 787 74 220 . . . Guns 671 | 151 28 252 240 . . . . . . . . . . . Cannons 3626 | . . 118 . 685 1071 848 609 112 109 74 . . . . Explosions 3422 | . . 1236 303 . 20 . 965 . 678 . 220 . . . Melee 1114 | . . . 1114 . . . . . . . . . . . Ramming 11 | . . . . . 8 . 3 . . . . . . . Kinetic 1508 | 151 28 1092 237 . . . . . . . . . . . Thermal 3594 | . . . 66 685 1091 848 609 112 109 74 . . . . Explosive 2325 | . . 514 . . . . 965 . 626 . 220 . . . Electromagnetic 292 | . . . 240 . . . . . 52 . . . . . Impact . | . . . . . . . . . . . . . . . Slashing 1114 | . . . 1114 . . . . . . . . . . . Piercing . | . . . . . . . . . . . . . . . Highest Corruption 3 | . . . 2 . 1 3 . . . . . 1 1 . Average Corruption 1 | . . . 2 . 1 2 . . . . . 1 1 . Corruption Purged . | . . . . . . . . . . . . . . . Corruption Blocked . | . . . . . . . . . . . . . . . Effects 6 | . . . 1 . 1 1 . . . . . . 3 . Message Errors 1 | . . . . . 1 . . . . . . . . . Matter Fused 1 | . . . . . . . . . . . . . 1 . Heat Flow Errors 1 | . . . . . . . . . . . . . 1 . Energy Discharges 1 | . . . . . . . . . . . . . 1 . Data Loss (minor) 1 | . . . . . . 1 . . . . . . . . Alerts 1 | . . . 1 . . . . . . . . . . . Overload Shots . | . . . . . . . . . . . . . . . Overflow Damage 564 | . . . 130 8 142 58 114 . 43 9 60 . . . Projectiles 283 | . . . . 8 142 58 66 . . 9 . . . . Explosions 158 | . . . 7 . . . 48 . 43 . 60 . . . Melee 123 | . . . 123 . . . . . . . . . . . Knockbacks 1 | . . 1 . . . . . . . . . . . . Impact . | . . . . . . . . . . . . . . . Kinetic 1 | . . 1 . . . . . . . . . . . . Secondary . | . . . . . . . . . . . . . . . Self-Inflicted Damage 170 | . . 26 . . 79 . 15 . 50 . . . . . Shots 5 | . . 2 . . 1 . 1 . 1 . . . . . Rammed 4 | . . . . . 3 . 1 . . . . . . . Targets Rammed 4 | . . . . . 3 . 1 . . . . . . . Kicked . | . . . . . . . . . . . . . . . Crushed . | . . . . . . . . . . . . . . . Highest Temperature 256 | 6 40 232 13 171 256 . . . . . . 174 53 . Average Temperature 70 | 6 22 121 5 54 86 . . . . . . 101 53 . Received Heat Transfer 1368 | . . 418 387 120 67 24 9 . 9 . 9 . 286 39 Effects 3 | . . . . . 3 . . . . . . . . . Interference 3 | . . . . . 3 . . . . . . . . . Siege Activations . | . . . . . . . . . . . . . . . Martial Activations . | . . . . . . . . . . . . . . . Shielding Activations . | . . . . . . . . . . . . . . . Robots Disrupted 1 | . . . . . . . . . 1 . . . . . Combat Hostiles 1 | . . . . . . . . . 1 . . . . . Robots Corrupted 1 | . . . 1 . . . . . . . . . . . Combat Hostiles 1 | . . . 1 . . . . . . . . . . . Parts Fried 3 | . . . 3 . . . . . . . . . . . Impact Corruptions . | . . . . . . . . . . . . . . . Robots Melted 4 | . . . . 1 1 2 . . . . . . . . Combat Hostiles 4 | . . . . 1 1 2 . . . . . . . . Parts Melted 8 | . . 1 . 3 . 4 . . . . . . . . Heat Transferred 450 | . . . . . 50 . . 150 150 100 . . . . Parts Sabotaged . | . . . . . . . . . . . . . . . Parts Stolen . | . . . . . . . . . . . . . . . Parts Stripped . | . . . . . . . . . . . . . . . Power Chain Reactions 1 | . . . 1 . . . . . . . . . . . Alert | -11 -10 -10 -8 -7 -6 -6 -5 -5 -5 -5 -5 -5 -4 -4 ------- Run | Yrd Mat Sub Mat Fac Fac Gar Fac Was Fac Upp Upp War Pro Fac Maximum Alert Level 2 | . . . 1 . 1 2 2 . 2 . . . . . Low Security (%) 80 | 100 100 . 96 100 99 14 . 100 79 . . . . 100 Level 1 15 | . . . 3 . . 66 78 . 8 . . . . . Level 2 4 | . . . . . . 19 21 . 12 . . . . . Level 3 . | . . . . . . . . . . . . . . . Level 4 . | . . . . . . . . . . . . . . . Level 5 . | . . . . . . . . . . . . . . . High Security . | . . . . . . . . . . . . . . . Max Security . | . . . . . . . . . . . . . . . Peak Influence 540 | 10 17 . 207 99 225 502 540 182 425 . . . . 122 Initial 263 | . . . . 45 11 157 263 180 99 . . . . 122 Average 125 | 2 1 . 103 40 105 295 317 161 139 . . . . 82 Influence Increases 3300 | 15 24 55 650 260 507 355 505 2 406 56 90 . 375 . Destroy 0b10 Robot/C 1120 | . . 40 260 100 140 220 160 . 80 40 80 . . . Destroy 0b10 Robot/NC 110 | 15 5 . 40 5 5 . 20 . 20 . . . . . Destroy Leader 174 | . . . 48 32 40 10 22 . 12 . 10 . . . Allied During Kill 1 | . . . . . . . . . . 1 . . . . Successful Hack 164 | . 17 . 23 24 38 14 44 . 4 . . . . . Select Force Hacks 30 | . . . . . 30 . . . . . . . . . Disable Machine 330 | . . . 30 15 30 . 30 . 225 . . . . . Anti-Garrison Action 50 | . . . . . . 50 . . . . . . . . Destroy Structure 256 | . 2 . 24 9 29 16 124 2 50 . . . . . Partial Spotted 45 | . . . 15 . 15 . . . 15 . . . . . Lose Combat Pursuer 1020 | . . 15 210 75 180 45 105 . . 15 . . 375 . Influence Decreases 3278 | 15 24 55 549 337 306 78 491 376 123 388 109 74 180 173 Entered New Map 1079 | . . . . 56 13 68 239 336 43 158 19 74 . 73 Time Decay 1819 | 15 24 55 399 271 293 . 222 40 80 170 80 . 110 60 Search Patrol Dispatched 100 | . . . 100 . . . . . . . . . . . Lost Part 220 | . . . 50 10 . 10 30 . . . 10 . 70 40 Lost Ally 60 | . . . . . . . . . . 60 . . . . Squads Dispatched 17 | . . . 2 4 7 . 4 . . . . . . . Investigation 7 | . . . . 3 3 . 1 . . . . . . . Extermination 4 | . . . . 1 2 . 1 . . . . . . . Reinforcement 6 | . . . 2 . 2 . 2 . . . . . . . Assault . | . . . . . . . . . . . . . . . Garrison . | . . . . . . . . . . . . . . . Intercept . | . . . . . . . . . . . . . . . Searches Triggered 1 | . . . 1 . . . . . . . . . . . Construction Impeded 2 | . . . 1 . . . 1 . . . . . . . Haulers Reinforced . | . . . . . . . . . . . . . . . Active Scanning Responses . | . . . . . . . . . . . . . . . Cargo Convoy Interrupts . | . . . . . . . . . . . . . . . Stealth | -11 -10 -10 -8 -7 -6 -6 -5 -5 -5 -5 -5 -5 -4 -4 --------- Run | Yrd Mat Sub Mat Fac Fac Gar Fac Was Fac Upp Upp War Pro Fac Distress Signals 9 | . . . 2 1 2 . 2 . 1 . . . 1 . Communications Jammed . | . . . . . . . . . . . . . . . Distress Signals . | . . . . . . . . . . . . . . . Times Spotted 184 | . . 16 35 11 29 16 22 5 6 6 4 . 33 1 Peak Tracking Total 15 | . . 2 8 4 8 7 8 5 4 4 4 . 15 1 Tactical Retreats 33 | . . 2 8 3 7 1 2 . . 1 . . 9 . Traps | -11 -10 -10 -8 -7 -6 -6 -5 -5 -5 -5 -5 -5 -4 -4 ------- Run | Yrd Mat Sub Mat Fac Fac Gar Fac Was Fac Upp Upp War Pro Fac Traps Triggered 12 | . . . 1 1 2 2 3 . . . . 3 . . Indirectly . | . . . . . . . . . . . . . . . Trap Hack Attempts . | . . . . . . . . . . . . . . . Triggered . | . . . . . . . . . . . . . . . Disarmed . | . . . . . . . . . . . . . . . Reprogrammed . | . . . . . . . . . . . . . . . Reused . | . . . . . . . . . . . . . . . Traps Extracted . | . . . . . . . . . . . . . . . Installed . | . . . . . . . . . . . . . . . Triggered . | . . . . . . . . . . . . . . . Machines | -11 -10 -10 -8 -7 -6 -6 -5 -5 -5 -5 -5 -5 -4 -4 ---------- Run | Yrd Mat Sub Mat Fac Fac Gar Fac Was Fac Upp Upp War Pro Fac Machines Disabled 25 | . . 1 2 1 2 1 2 . 15 1 . . . . Max in Single Turn 14 | . . 1 1 1 2 1 1 . 14 1 . . . . Garrison Access 5 | . . . . 1 . . 2 . 1 . . . . 1 Garrison Relay 2 | . . . . . . 2 . . . . . . . . Machines Repaired . | . . . . . . . . . . . . . . . Machines Dismantled . | . . . . . . . . . . . . . . . Machines Sabotaged . | . . . . . . . . . . . . . . . Overloaded Fab Kills . | . . . . . . . . . . . . . . . Hacking | -11 -10 -10 -8 -7 -6 -6 -5 -5 -5 -5 -5 -5 -4 -4 --------- Run | Yrd Mat Sub Mat Fac Fac Gar Fac Was Fac Upp Upp War Pro Fac Machines Accessed 44 | . 1 1 7 9 11 1 10 . 3 . . . . 1 Terminals 19 | . 1 . 5 3 4 1 4 . 1 . . . . . Fabricators 3 | . . . . . 2 . 1 . . . . . . . Repair Stations 3 | . . . 1 2 . . . . . . . . . . Recycling Units 8 | . . . 1 1 3 . 2 . 1 . . . . . Scanalyzers 4 | . . . . 2 1 . 1 . . . . . . . Garrison Access 6 | . . . . 1 1 . 2 . 1 . . . . 1 Total Hacks 98 | . 4 1 22 26 21 2 16 . 5 . . . . 1 Successful 53 | . 3 1 10 12 10 1 11 . 4 . . . . 1 Failed 45 | . 1 . 12 14 11 1 5 . 1 . . . . . Catastrophic 10 | . . . 1 3 4 1 1 . . . . . . . Database Lockouts . | . . . . . . . . . . . . . . . Manual 39 | . 5 . 13 9 6 . 5 . 1 . . . . . Terminals 58 | . 4 . 18 12 10 2 9 . 3 . . . . . Fabricators 3 | . . . . . 2 . 1 . . . . . . . Repair Stations 7 | . . . 1 6 . . . . . . . . . . Recycling Units 13 | . . . 3 1 6 . 2 . 1 . . . . . Scanalyzers 10 | . . . . 6 2 . 2 . . . . . . . Garrison Access 6 | . . . . 1 1 . 2 . 1 . . . . 1 Terminal Hacks 12 | . 2 1 2 3 . 1 2 . 1 . . . . . Robot Analysis 2 | . 2 . . . . . . . . . . . . . Branch Access Points 1 | . . . . . . . 1 . . . . . . . Emergency Access Points 1 | . . . . . . 1 . . . . . . . . Scanalyzer Index 1 | . . . . 1 . . . . . . . . . . Locate Traps 2 | . . . . 1 . . . . 1 . . . . . Hauler Manifests 1 | . . . . . . . 1 . . . . . . . Registered Components 1 | . . . 1 . . . . . . . . . . . Zone Layout 2 | . . . 1 1 . . . . . . . . . . Proto ID Catalog 1 | . . 1 . . . . . . . . . . . . Fabricator Hacks 3 | . . . . . 2 . 1 . . . . . . . Network Status 3 | . . . . . 2 . 1 . . . . . . . Repair Station Hacks 4 | . . . 1 3 . . . . . . . . . . Scan Component 2 | . . . . 2 . . . . . . . . . . Repair 1 | . . . . 1 . . . . . . . . . . Refit 1 | . . . 1 . . . . . . . . . . . Recycling Unit Hacks 9 | . . . 2 1 3 . 2 . 1 . . . . . Report Inventory 8 | . . . 1 1 3 . 2 . 1 . . . . . Retrieve Components 1 | . . . 1 . . . . . . . . . . . Scanalyzer 5 | . . . . 2 1 . 2 . . . . . . . Insert Component 1 | . . . . . 1 . . . . . . . . . Retrieve Study 4 | . . . . 2 . . 2 . . . . . . . Garrison Access Hacks 6 | . . . . 1 1 . 2 . 1 . . . . 1 Unlock Access 1 | . . . . . 1 . . . . . . . . . Seal Access 5 | . . . . 1 . . 2 . 1 . . . . 1 Unauthorized Hacks 14 | . 1 . 5 2 3 . 2 . 1 . . . . . Terminals 13 | . 1 . 5 2 2 . 2 . 1 . . . . . Track 1 | . . . 1 . . . . . . . . . . . Botnet 11 | . 1 . 3 2 2 . 2 . 1 . . . . . Operators 1 | . . . 1 . . . . . . . . . . . Fabricators . | . . . . . . . . . . . . . . . Repair Stations . | . . . . . . . . . . . . . . . Recycling Units 1 | . . . . . 1 . . . . . . . . . Tunnel 1 | . . . . . 1 . . . . . . . . . Scanalyzers . | . . . . . . . . . . . . . . . Garrison Access . | . . . . . . . . . . . . . . . Data Cores Recovered . | . . . . . . . . . . . . . . . Used . | . . . . . . . . . . . . . . . Hacking Detections 29 | . 1 . 7 7 8 . 5 . 1 . . . . . Full Trace Events 4 | . . . . 2 1 . 1 . . . . . . . Feedback Events . | . . . . . . . . . . . . . . . Feedback Blocked . | . . . . . . . . . . . . . . . Robot Schematics Acquired . | . . . . . . . . . . . . . . . Robots Built . | . . . . . . . . . . . . . . . Authchips . | . . . . . . . . . . . . . . . Time . | . . . . . . . . . . . . . . . Total Robot Build Rating . | . . . . . . . . . . . . . . . Part Schematics Acquired . | . . . . . . . . . . . . . . . Parts Built . | . . . . . . . . . . . . . . . Authchips . | . . . . . . . . . . . . . . . Time . | . . . . . . . . . . . . . . . Total Part Build Rating . | . . . . . . . . . . . . . . . Part Studies Acquired 4 | . . . . 2 . . 2 . . . . . . . Parts Repaired 1 | . . . . 1 . . . . . . . . . . Time 53 | . . . . 53 . . . . . . . . . . Parts Recycled . | . . . . . . . . . . . . . . . Recycled Matter . | . . . . . . . . . . . . . . . Retrieved Matter . | . . . . . . . . . . . . . . . Retrieved Components 3 | . . . 3 . . . . . . . . . . . Parts Scanalyzed 1 | . . . . . 1 . . . . . . . . . Part Schematics Acquired . | . . . . . . . . . . . . . . . Parts Damaged 1 | . . . . . 1 . . . . . . . . . Bothacking | -11 -10 -10 -8 -7 -6 -6 -5 -5 -5 -5 -5 -5 -4 -4 ------------ Run | Yrd Mat Sub Mat Fac Fac Gar Fac Was Fac Upp Upp War Pro Fac Used RIF Installer 1 | . . . . . . 1 . . . . . . . . Robots Hacked . | . . . . . . . . . . . . . . . Non-combat . | . . . . . . . . . . . . . . . Combat . | . . . . . . . . . . . . . . . Robot Hacks Applied . | . . . . . . . . . . . . . . . Relay Couplers Released 8 | . . . . . . 8 . . . . . . . . Machine Destruction 8 | . . . . . . 8 . . . . . . . . Fabnet Peak Effective % . | . . . . . . . . . . . . . . . Robots Rewired 4 | . . . . . . . . . . 4 . . . . Allies Hacked . | . . . . . . . . . . . . . . . Hacks Repelled . | . . . . . . . . . . . . . . . Allies | -11 -10 -10 -8 -7 -6 -6 -5 -5 -5 -5 -5 -5 -4 -4 -------- Run | Yrd Mat Sub Mat Fac Fac Gar Fac Was Fac Upp Upp War Pro Fac Total Allies 4 | . . . . . . . . . . 4 . . . . Largest Group 2 | . . . . . . . . . . 2 . . . . Highest-Rated Group 59 | . . . . . . . . . . 59 . . . . Highest-Rated Ally 30 | . . . . . . . . . . 30 . . . . Total Orders . | . . . . . . . . . . . . . . . Ally Attacks 13 | . . . . . . . . . . 13 . . . . Total Damage 368 | . . . . . . . . . . 368 . . . . Kills 3 | . . . . . . . . . . 3 . . . . Allies Corrupted . | . . . . . . . . . . . . . . . Allies Melted . | . . . . . . . . . . . . . . . Intel | -11 -10 -10 -8 -7 -6 -6 -5 -5 -5 -5 -5 -5 -4 -4 ------- Run | Yrd Mat Sub Mat Fac Fac Gar Fac Was Fac Upp Upp War Pro Fac Active Infowar (turns) 1496 | 2 245 996 . . . . 253 . . . . . . . Optics 253 | . . . . . . . 253 . . . . . . . Terrain 996 | . . 996 . . . . . . . . . . . . Seismic 247 | 2 245 . . . . . . . . . . . . . Robot Analysis Total 2 | . 2 . . . . . . . . . . . . . Derelict Logs Recovered 4 | . . 2 . . . . . . . 1 . . 1 . Drone Launches . | . . . . . . . . . . . . . . . Drone Recoveries . | . . . . . . . . . . . . . . . Exploration | -11 -10 -10 -8 -7 -6 -6 -5 -5 -5 -5 -5 -5 -4 -4 ------------- Run | Yrd Mat Sub Mat Fac Fac Gar Fac Was Fac Upp Upp War Pro Fac Turns Passed 8083 | 90 245 3125 1205 665 677 288 475 98 177 350 163 144 249 132 Spaces Moved 7344 | 53 113 1525 777 683 1166 353 742 158 341 523 305 162 365 78 Core 305 | . . 164 105 . . . . . . . . . 5 31 Treads 1074 | . . 1074 . . . . . . . . . . . . Legs 299 | . . . 295 . . . . . . . . . . 4 Wheels 453 | 53 113 287 . . . . . . . . . . . . Hover 5145 | . . . 352 683 1166 353 742 158 341 523 305 162 360 . Flight 68 | . . . 25 . . . . . . . . . . 43 Fastest Speed 34 | 100 100 50 48 44 42 48 48 48 48 48 48 52 56 34 Average Speed 80 | 100 100 143 108 76 45 48 48 48 48 48 49 89 68 148 Slowest Speed 455 | 100 100 240 455 108 104 101 48 48 48 48 52 160 250 350 Overloaded Moves . | . . . . . . . . . . . . . . . Propulsion Burnouts . | . . . . . . . . . . . . . . . Robots Hopped . | . . . . . . . . . . . . . . . Potential Cave-ins 6 | . . 2 . . 2 . 2 . . . . . . . Cave-ins Triggered . | . . . . . . . . . . . . . . . Exploration Rate (%) 34 | 4 8 60 48 22 32 36 20 78 8 56 58 20 57 3 Regions Visited 14 Branch Regions 5 Pre-discovered Areas 2 | . . 1 . . 1 . . . . . . . . . Known Exits Taken 2 | . . . . . 1 . . . 1 . . . . . Unknown Exits Taken 9 | 1 1 1 1 1 . . . . . 1 1 1 1 . Scrap Searched 9 | . . 4 . . . . . . . 2 2 . 1 . Spaces Dug 31 | . 2 . . 3 16 . 5 . . 5 . . . . Terrain Destroyed 436 | . 2 211 24 9 30 11 81 1 31 6 30 . . . Melee . | . . . . . . . . . . . . . . . Projectile 60 | . 2 . . 9 24 11 7 1 . 6 . . . . AOE 376 | . . 211 24 . 6 . 74 . 31 . 30 . . . Terrain Rammed . | . . . . . . . . . . . . . . . Walls Destroyed . | . . . . . . . . . . . . . . . Machines Disabled . | . . . . . . . . . . . . . . . Actions | -11 -10 -10 -8 -7 -6 -6 -5 -5 -5 -5 -5 -5 -4 -4 --------- Run | Yrd Mat Sub Mat Fac Fac Gar Fac Was Fac Upp Upp War Pro Fac Total 9159 | 71 236 2365 1045 812 1280 447 832 176 350 612 316 161 366 90 Wait 1174 | . 117 743 143 75 37 28 7 11 2 11 . . . . Move 7332 | 52 112 1524 776 682 1166 352 742 157 340 522 304 161 364 78 Hop . | . . . . . . . . . . . . . . . Pick Up 66 | 3 2 10 20 9 6 2 6 2 1 2 3 . . . Fast Attach 39 | . . 1 17 3 5 . 6 . . . . . . 7 Attach 17 | 1 . 2 3 3 1 1 3 1 . . . . 1 1 Detach 12 | . . 2 2 2 . . 4 . . . . . . 2 Swap 55 | 3 2 17 9 4 4 5 5 . 1 2 3 . . . Drop 76 | 3 . 13 19 10 11 3 7 1 2 2 4 . 1 . Fire 237 | 9 3 53 20 24 47 30 30 4 4 9 2 . . 2 Melee 36 | . . . 36 . . . . . . . . . . . Ram 4 | . . . . . 3 . 1 . . . . . . . Kick . | . . . . . . . . . . . . . . . Crush . | . . . . . . . . . . . . . . . Escape Stasis 47 | . . . . . . 26 21 . . . . . . . Rewire 64 | . . . . . . . . . . 64 . . . . Trap . | . . . . . . . . . . . . . . . Miscellaneous . | . . . . . . . . . . . . . . . Route ------- -11/Scrapyard -10/Materials -10/Subcaves (discovered 2 exits: *Mat x2) -8/Materials -7/Factory -6/Factory -6/Garrison -5/Factory (discovered 2 exits: Upp x2) -5/Waste -5/Factory -5/Upper Caves -5/Upper Caves -5/Warlord -4/Proximity Caves -4/Factory (discovered 1 exit: Res) History --------- Turn | Location | Event 6 | -11/Scrapyard | Discovered new exit (range 3) 91 | -11/Scrapyard | Entered Materials 311 | -10/Materials | Build established: Mutant 321 | -10/Materials | Discovered new exit (range 6) 336 | -10/Materials | Entered Subcaves 445 | -10/Subcaves | Shifting Twisted Machinery released Sub. Monowheel 447 | -10/Subcaves | Discovered new exit (range 12) 458 | -10/Subcaves | Disturbed a concealed Subdweller 476 | -10/Subcaves | Ambushed by Subdweller buried in earth 482 | -10/Subcaves | Ambushed by Subdweller buried in earth 1306 | -10/Subcaves | Shifting Twisted Machinery released Riot Gun 1924 | -10/Subcaves | Discovered new exit (range 10) 2041 | -10/Subcaves | Visited 4L-MR0's lab 2043 | -10/Subcaves | Learned Materials emergency access door positions 2069 | -10/Subcaves | Found Powered Cannon 2132 | -10/Subcaves | Learned location of Zion (-6) 2132 | -10/Subcaves | Met a Zionite searching for "candidates" 2950 | -10/Subcaves | Core integrity fell below 50% 2999 | -10/Subcaves | Shifting Twisted Machinery released Battle Rifle 3008 | -10/Subcaves | Shifting Twisted Machinery released Shrapnel Trap 3089 | -10/Subcaves | Learned Materials garrison access intel 3366 | -10/Subcaves | Ambushed by Subdweller buried in earth 3381 | -10/Subcaves | Core integrity fell below 20% 3461 | -10/Subcaves | Entered Materials 3461 | -8/Materials | Evolved 4 slots: Propulsion x2, Utility x2 3463 | -8/Materials | Loaded intel: 1 garrison access location 4273 | -8/Materials | Lost 3 parts (1p1n1w) 4635 | -8/Materials | Discovered new exit (range 13) 4661 | -8/Materials | Search patrols dispatched 4666 | -8/Materials | Entered Factory 4666 | -7/Factory | Evolved 2 slots: Propulsion x1, Utility x1 4679 | -7/Factory | Attached Powered Cannon, gained temporary slot: Power 5026 | -7/Factory | Repaired Broken Airjet 5293 | -7/Factory | Discovered new exit (range 14) 5331 | -7/Factory | Entered another Factory area 5331 | -6/Factory | Evolved 2 slots: Utility x2 6008 | -6/Factory | Identified exit to Garrison 6008 | -6/Factory | Entered Garrison 6016 | -6/Garrison | Triggered checkpoint 6063 | -6/Garrison | Installed Relay Interface Framework 6126 | -6/Garrison | Garrison Relay disabled 6128 | -6/Garrison | Triggered checkpoint 6148 | -6/Garrison | Triggered checkpoint 6188 | -6/Garrison | Garrison Relay disabled 6254 | -6/Garrison | Spotted B-75 Beast 6258 | -6/Garrison | Triggered checkpoint 6292 | -6/Garrison | Discovered new exit (range 10) 6296 | -6/Garrison | Entered Factory 6296 | -5/Factory | Evolved 2 slots: Utility x2 6425 | -5/Factory | Identified exit to Upper Caves 6771 | -5/Factory | Sucked down chute 6771 | -5/Factory | Entered Waste 6781 | -5/Waste | Spotted C-40 Crusher 6783 | -5/Waste | Found Prototype Device 6798 | -5/Waste | Spotted C-40 Crusher 6803 | -5/Waste | Spotted C-40 Crusher 6837 | -5/Waste | Spotted C-40 Crusher 6838 | -5/Waste | Spotted C-40 Crusher 6838 | -5/Waste | Spotted C-40 Crusher 6847 | -5/Waste | Discovered new exit (range 13) 6869 | -5/Waste | Entered Factory 6936 | -5/Factory | Discovered exit to Upper Caves (range 15) 7046 | -5/Factory | Entered Upper Caves 7097 | -5/Upper Caves | Identified System Purifier 7190 | -5/Upper Caves | Attacked by a delusional Derelict stockpiling Unaware 7202 | -5/Upper Caves | Learned 4 Factory zone layouts 7322 | -5/Upper Caves | Attracted the attention of an 0b10 checkpoint 7386 | -5/Upper Caves | Discovered new exit (range 5) 7396 | -5/Upper Caves | Entered another Upper Caves area 7487 | -5/Upper Caves | Found DCF Scrap (12 items) 7540 | -5/Upper Caves | Attracted the attention of an 0b10 checkpoint 7555 | -5/Upper Caves | Discovered new exit (range 9) 7559 | -5/Upper Caves | Entered Warlord 7586 | -5/Warlord | RIF detected upon attempting to enter Warlord's base 7586 | -5/Warlord | Attacked by Warlord forces 7591 | -5/Warlord | Spotted DY-GIP(B) 7591 | -5/Warlord | Spotted CU-GFX(B) 7659 | -5/Warlord | Discovered new exit (range 14) 7703 | -5/Warlord | Entered Proximity Caves 7735 | -4/Proximity Caves | Attracted the attention of an 0b10 checkpoint 7800 | -4/Proximity Caves | Snuck into a huge 0b10 base via the rear entrance 7931 | -4/Proximity Caves | Discovered new exit (range 16) 7952 | -4/Proximity Caves | Entered Factory 7952 | -4/Factory | Evolved 2 slots: Power x1, Utility x1 7953 | -4/Factory | Identified exit to Research 7981 | -4/Factory | Lost 6 parts (1p1n3u1w) 8017 | -4/Factory | Spotted B-86 Titan 8084 | -4/Factory | Self-destructed Last Messages --------------- 08038_ Cryofiber Web destroyed. 08039_ Acquired 3 matter. 08045_ Slug penetrates Wall. 08045_ Penetrated by Slug. 08045_ Exp. Heat Sink destroyed. 08048_ Acquired Prototype Flight Unit. 08048_ Identified Diametric Drive. 08048_ Slug penetrates Wall. 08048_ Penetrated by Slug. 08051_ Connecting with Garrison Access... 08051_ Current location identified: Factory >>Seal Access door sealed. 08052_ Fusion Modulator explodes. 08052_ Slug penetrates Wall. 08056_ Mak. Power Source destroyed. 08056_ Diametric Drive destroyed. 08062_ U-05 Engineer lays Concrete. 08070_ ALERT: Security rotation in progress. 08074_ Acquired Adv. VSS Leg. Map ----- +----------------------------------------------------+ | | | | | | | | | | | | | | | | | | | | | | | | | | | ?????????????????????????????????????????????????? | | ????????????????????????????###################??? | | ????????????????????????????# #??? | | ?????????????#####??????????# % #### | | ????????????? ?????????# " | | ????????????? ######+### " | | ???????????? BB | | ????????????? B | | ???????????????""" """" """" " | | ????????????? "Y" """" """" | | ?????????? " " """" """" | | ????????????# ** """" """" | | ????????????# *@ """" """" " | | ????????????# ######## * """" """" ! [ ! "" | | ?????????????????????# """" """" * "#" | | ?????????????????????# R" + | | ?????????????????????# """ #### | | ?????????????????????# # ########??# | | ?????????????????????# # #?????????# | | ?????????????????????# ########## ###??????????# | | ?????????????????????# ?????????? #????????????# | | ?????????????????????# ????????????????????????# | | ????????????????????? ????????????????????????# | | ?????????????????????###??????????????????######## | | ??????????????????????????????????????????# | | ???????????????????????????????????????#??# | | ???????????????????????????????????????#??# | | ???????????????????????????????????????#??# | | ???????????????????????????????????????#??# | | ???????????????????????????????????????#??### | | ???????????????????????????????????????###### | | ???????????????????????????????????????# # | | ???????????????????????????????????????+ # | | ???????????????????????????????????????# + | | ???????????????????????????????????????# # """ | | ???????????????????????????????????????# # """ | | ???????????????????????????????????????# # """ | +----------------------------------------------------+ Best States ------------- Heat Dissipation 147 Energy Generation 44 Energy Capacity 400 Matter Stores 300 Matter Capacity 300 Sight Range 22 Terrain Scan Range 16 Terrain Scan Density 85 Power Amplification 20 Base Temperature (-) 100 Armor Coverage 800 Resistance: TH 25 Resistance: EM 25 Weapon Shielding 66 Evasion (%) 63 Recoil Reduction 1 Particle Charging 15 Item Schematics ----------------- None Robot Schematics ------------------ None Fabricated ------------ Nothing Repaired ---------- Airjet | 7% | -7/Factory | Broken Studied --------- Airjet | -7/Factory | Hacked Mic. Nuclear Core | -7/Factory | Hacked Gravmag Array | -5/Factory | Hacked Fusion Compressor | -5/Factory | Hacked Alien Tech Used ----------------- None Achievements -------------- Physics Hates This One Trick Suspicious Challenges ------------ None Game ------ Seed WeightAssembledCompanion Manual? 0 Play Time 01:49:22 Cumulative 121.6 hours Start 2025.12.09 @ 16:21:25 End 2025.12.14 @ 15:45:47 Sessions 5 Manual Loads 0 Difficulty Rogue Special Mode None Game No. 131 Rogue 101 Adventurer 30 Explorer 0 Win Type - Total 1 Types 1/0/0/0/0/0/0/0/0/0 Lore% 58 Gallery% 47 Achievement% 36 Wizard Run 0 Options --------- Layout 2 ASCII 0 Keyboard 1 Movement Arrows Keybinds 0 Fullscreen 1 Font 24/Terminus Map View 50x44 Zoom Use 0% Tactical HUD 1 Map Filters NONE Filters NONE Steam 1 RUN: e1fb882f-6d61-4461-a33f-f20d796e9b89